{"text_format":"1","workbook":"xlsx","n_sheets":3,"sheets":["стандарт","ануїтет","тіло в кінці строку"],"not_rendered":{"charts":0,"images":4,"macros":1,"external_links":0,"defined_names":0,"comments":0,"pivot_tables":0},"unopened":[],"bounds":{"document_bytes":16777216,"sheet_cells":100000,"rows_first":2000,"rows_last":500,"rows_between":2000,"halvings":0,"cell_chars":16384,"cell_head_chars":4096},"cells_cut":0,"cells_raw":0,"read":"whole","date_system":"1900"}

{"sheet":"стандарт","index":0,"n_rows":68,"n_cols":25,"rows_kept":68,"cut":false,"hidden":false,"merged":[[65,1,65,17],[66,1,66,17],[14,11,14,13],[35,10,35,16],[37,5,38,5],[37,6,38,6],[37,8,38,8],[37,9,38,9],[37,10,38,10],[37,11,38,11],[34,4,36,4],[34,3,36,3],[27,4,27,5],[60,1,60,8],[61,1,61,8],[63,1,63,8],[8,1,8,2],[14,0,15,0],[33,0,36,0],[15,1,15,2],[13,1,13,2],[12,1,12,2],[11,1,11,2],[33,1,36,1],[33,2,36,2],[10,1,10,2],[14,1,14,2],[22,1,22,2],[18,1,18,2],[37,13,38,13],[62,1,62,8],[30,19,30,21],[33,21,36,21],[33,20,36,20],[33,3,33,19],[35,5,35,9],[34,5,34,19],[35,17,35,19],[75,1,75,22],[72,1,72,22],[73,1,73,22],[74,1,74,22],[71,1,71,17],[70,1,70,17],[37,2,38,2],[37,3,38,3],[68,1,68,22],[37,20,38,20],[37,1,38,1],[67,1,67,17],[69,1,69,17],[64,1,64,8],[37,21,38,21],[37,4,38,4],[37,14,38,14],[37,15,38,15],[37,17,38,17],[37,19,38,19],[37,12,38,12]]}
[]
[]
[]
[null,null,null,"КАЛЬКУЛЯТОР"]
[null,null,null,"Обрані Споживачем умови кредитування"]
[]
[null,"Кредит видається на:",null,"Під заставу майнових прав на депозит"]
[null,"Дата надання кредиту",null,{"$f":"TODAY()","v":"2025-12-18"}]
[null,"Сума кредиту,грн.: ",null,200000,"гривень"]
[null,"Забезпечення",null,240000,"гривень",null,null,null,null,null,null,null,"Заповнюється Клієнтом"]
[null,"Строк користування кредитом (в місяцях): ",null,18]
[null,"Погашення основної суми кредиту: щомісяця"]
[null,"Погашення процентів: щомісяця"]
[{"$f":"ROUND(D9/D11,2)","v":11111.11},"Номінальна процентна ставка: ",null,{"$f":"I15","v":0.187},"річних",{"$f":"D14","v":0.187},null,null,{"$f":"F14/12","v":1.5583333333333333E-2}]
[null,"Номінальна процентна ставка, % річних",null,0.187,"Маржа",0,"Номінальна процентна ставка визначається Банком , як процентна ставка за депозитом (вкладом) + маржа)",null,{"$f":"D15+F15","v":0.187},"річних",null,"Для кредитів і банківських вкладів, валюти яких відрізняються, сума кредиту розраховується за курсом НБУ на дату звернення споживача з оформленням відповідної заяви"]
[null,"Супутні витрати позичальника:"]
[{"$f":"DATE(YEAR(B40),MONTH(B40)+1,DAY(B40))","v":"2026-01-18"},"комісія за надання кредиту (разова): ",null,5.0000000000000001E-3," від основної суми кредиту/ Всього:",null,{"$f":"D17*D9","v":1000},null,"гривень"]
[null,"обслуговування кредитної заборгованості: ",null,0,"на місяць від основної суми кредиту:",null,{"$f":"D18*D9","v":0},null,"гривень"]
[null,"надання витягів/внесення запису(ів) до Державного реєстру обтяжень рухомого майна",null,null,null,null,2500,null,"гривень"]
[null,"страхування НВ:",null,0,"на рік від основної суми кредиту:",null,{"$f":"D20*D9","v":0},null,"гривень"]
[null,"страхування майна:",null,0,"на рік від залогової вартості:",null,{"$f":"D10*D21","v":0},null,"гривень"]
[null,"послуги нотаріуса: ",null,null,null,null,0,null,"гривень"]
[null,"державні збори",null,null,"фіксована сума (одноразово)",null,0,null,"гривень"]
[null,"інші послуги третіх осіб",null,null,"фіксована сума (одноразово)",null,0,null,"гривень"]
[null,"інші послуги банку",null,null,null,null,0,null,"гривень"]
[null,"комісійний збір кредитного посередника",null,0,"від суми кредиту (одноразово)",null,{"$f":"D9*D26","v":0},null,"гривень"]
[null,"оцінка майна:",null,null,"фіксована сума (одноразово)",null,0,null,"гривень"]
[null,"інша плата за послуги кредитного посередника",null,null,null,null,0,null,"гривень"]
[null,"ВСЬОГО",null,null,null,null,{"$f":"SUM(G17:G28)","v":3500},null,"гривень"]
[]
[null,null,null,null,null,{"$f":"PMT(F14/12,E11,-D9)","v":{"$error":"#NUM!"}},{"$f":"IPMT(F14/12,1,24,-D9)","v":3116.6666666666665}]
[null,null,null,"Розрахунок загальної вартості споживчого кредиту та реальної процентної ставки"]
[]
[null,"Дата видачі кредиту/дата платежу","Чиста сума кредиту/сума платежу за розрахунковий період, грн.","Види платежів за кредитом",null,null,null,null,null,null,null,null,null,null,null,null,null,null,null,null,"Орієнтовна реальна річна процентна ставка, % ","пепеплата"]
[null,null,null,"сума кредиту за договором","проценти за користування кредитом","платежі за додаткові та/або супутні послуги"]
[null,null,null,null,null,"банку",null,null,null,null,"третіх осіб",null,null,null,null,null,null,"кредитного посередника(за наявності)"]
[null,null,null,null,null,"обслуговування кредитної заборгованості","надання витягів/внесення запису(ів) до Державного реєстру обтяжень рухомого майна","розрахунково-касове обслуговування","комісія за надання кредиту","інші послуги банку ","страхування НВ","послугами нотаріусів ","страхування майна","оцінка майна","держані збори","інші послуги третіх осіб",null,"комісійний збір кредитного посередника",null,"інша плата за послуги кредитного посередника"]
[null,1,2,3,4,5,6,null,7,8,9,10,11,12,13,14,null,15,null,16,17,18]
[null,null,null,null,null,null,null,null,null,null,null,null,null,null,null,null,null,null,null,null,null,null,"остаток"]
["e",{"$f":"D8","v":"2025-12-18"},{"$f":"-(D40-SUM(F40:T40))","v":-196500},{"$f":"D9","v":200000},"х",{"$f":"$G$18","v":0},{"$f":"G19","v":2500},null,{"$f":"G17","v":1000},{"$f":"G25","v":0},{"$f":"IF(X40=\"страховка\",$G$20,0)","v":0},{"$f":"G22","v":0},{"$f":"IF(X40=\"страховка\",$G$21,0)","v":0},{"$f":"G27","v":0},{"$f":"G23","v":0},{"$f":"G24","v":0},null,{"$f":"G26","v":0},null,{"$f":"G28","v":0},"х","х",200000,{"$f":"IF(MONTH($B$40)-MONTH(B40)=0,\"страховка\",\"нет\")","v":"страховка"}]
["e",{"$f":"DATE(YEAR(B40),MONTH(B40)+1,DAY(B40))","v":"2026-01-18"},{"$f":"SUM(D41:V41)","v":14331.665555555555},{"$f":"$A$14","v":11111.11},{"$f":"W40*$D$14/360*Y41","v":3220.5555555555557},0,null,null,null,null,{"$f":"IF(X41=\"страховка\",$G$20,0)","v":0},null,{"$f":"IF(X41=\"страховка\",$G$21,0)","v":0},null,null,null,null,null,null,null,null,null,{"$f":"W40-D41","v":188888.89},{"$f":"IF(MONTH($B$40)-MONTH(B41)=0,\"страховка\",\"нет\")","v":"нет"},{"$f":"B41-B40","v":31}]
["e",{"$f":"DATE(YEAR(B41),MONTH(B41)+1,DAY(B41))","v":"2026-02-18"},{"$f":"SUM(D42:V42)","v":14152.745820361111},{"$f":"$A$14","v":11111.11},{"$f":"W41*$D$14/360*Y42","v":3041.6358203611112},0,null,null,null,null,0,null,0,null,null,null,null,null,null,null,null,null,{"$f":"W41-D42","v":177777.78000000003},"нет",{"$f":"B42-B41","v":31}]
["e","2026-03-18",13696.789044666668,11111.11,2585.6790446666673,0,null,null,null,null,0,null,0,null,null,null,null,null,null,null,null,null,166666.67000000004,"нет",28]
["e","2026-04-18",13794.906349972223,11111.11,2683.7963499722232,0,null,null,null,null,0,null,0,null,null,null,null,null,null,null,null,null,155555.56000000006,"нет",31]
["e","2026-05-18",13535.184143333336,11111.11,2424.0741433333342,0,null,null,null,null,0,null,0,null,null,null,null,null,null,null,null,null,144444.45000000007,"нет",30]
["e","2026-06-18",13437.066879583335,11111.11,2325.9568795833343,0,null,null,null,null,0,null,0,null,null,null,null,null,null,null,null,null,133333.34000000008,"нет",31]
["e","2026-07-18",13188.887881666669,11111.11,2077.7778816666682,0,null,null,null,null,0,null,0,null,null,null,null,null,null,null,null,null,122222.23000000008,"нет",30]
["e","2026-08-18",13079.227409194445,11111.11,1968.1174091944456,0,null,null,null,null,0,null,0,null,null,null,null,null,null,null,null,null,111111.12000000008,"нет",31]
["e","2026-09-18",12900.307674000001,11111.11,1789.1976740000016,0,null,null,null,null,0,null,0,null,null,null,null,null,null,null,null,null,100000.01000000008,"нет",31]
["e","2026-10-18",12669.443489166668,11111.11,1558.3334891666677,0,null,null,null,null,0,null,0,null,null,null,null,null,null,null,null,null,88888.900000000081,"нет",30]
["e","2026-11-18",12542.468203611113,11111.11,1431.3582036111125,0,null,null,null,null,0,null,0,null,null,null,null,null,null,null,null,null,77777.790000000081,"нет",31]
["e","2026-12-18",12323.147227500001,11111.11,1212.0372275000013,0,null,null,null,null,0,null,0,null,null,null,null,null,null,null,null,null,66666.68000000008,"страховка",30]
["e","2027-01-18",12184.628733222224,11111.11,1073.5187332222235,0,null,null,null,null,0,null,0,null,null,null,null,null,null,null,null,null,55555.57000000008,"нет",31]
["e","2027-02-18",12005.70899802778,11111.11,894.59899802777909,0,null,null,null,null,0,null,0,null,null,null,null,null,null,null,null,null,44444.460000000079,"нет",31]
["e","2027-03-18",11757.529979333336,11111.11,646.4199793333346,0,null,null,null,null,0,null,0,null,null,null,null,null,null,null,null,null,33333.350000000079,"нет",28]
["e","2027-04-18",11647.86952763889,11111.11,536.75952763889006,0,null,null,null,null,0,null,0,null,null,null,null,null,null,null,null,null,22222.240000000078,"нет",31]
["e","2027-05-18",11457.406573333335,11111.11,346.29657333333455,0,null,null,null,null,0,null,0,null,null,null,null,null,null,null,null,null,11111.130000000077,"нет",30]
["e","2027-06-18",11290.030057250002,11111.11,178.92005725000126,0,null,null,null,null,null,null,null,null,null,null,null,null,null,null,null,null,2.0000000076834112E-2,null,31]
[null,"Усього",229995.01354741672,199999.97999999992,29995.033547416679,0,2500,0,1000,0,0,0,0,0,0,0,0,0,0,0,{"$f":"XIRR(C40:C58,B40:B58)","v":0.2367973387241363},33495.013547416602]
[]
[null,"Загальні витрати за кредитом( проценти за користування кредитом, комісії та інші обовязкові платежі за додаткові та/або супутні  послуги кредитодавця, кредитного посередника (за наявності) та третіх осіб, повязані з отриманням, обслуговуванням та поверненням кредиту), грн з них:",null,null,null,null,null,null,null,{"$f":"V59","v":33495.013547416602}]
[null," - Платежі за додаткові та/або супутні послуги кредитодавця, повязані з отриманням, обслуговуванням та поверненням кредиту), грн",null,null,null,null,null,null,null,{"$f":"E59+F59+G59+I59+J59","v":33495.033547416679}]
[null," - Платежі за додаткові та/або супутні послуги третіх осіб, повязані з отриманням, обслуговуванням та поверненням кредиту), грн",null,null,null,null,null,null,null,{"$f":"K59+L59+M59+N59+O59+P59+R59+T59","v":0}]
[null,"Орієнтовна загальна вартість кредиту для споживача за весь строк користування кредитом ( у т.ч. тіло кредиту, відсотки, комісії та інші платежі), грн.",null,null,null,null,null,null,null,{"$f":"J61+D9","v":233495.0135474166}]
[null,"Орієнтовна реальна річна процентна ставка, % річних",null,null,null,null,null,null,null,{"$f":"U59","v":0.2367973387241363}]
[null,"Застереження: Розрахунок загальної вартості Кредиту і реальної процентної ставки носить інформативний характер для Позичальника  і визначено станом на дату укладання Кредитного договору. При здійсненні розрахунку загальної вартості Кредиту і реальної процентної ставки Кредитор враховував вартість додаткових та/або супутніх послуг третіх осіб, послуги кредитного посередника ( за наявності). В розрахунок загальної  вартості Кредиту і реальної процентної ставки не включались умовні платежі Позичальника  по Договору (пені, штрафи,  які встановлюються згідно з Договором).\n"]
[null," Наведені обчислення реальної річної процентної ставки та орієнтовної загальної вартості кредиту для споживача є репрезентативними та базуються на обраних споживачем умовах кредитування, викладених вище, і на припущенні, що договір про споживчий кредит залишатиметься дійсним протягом погодженого строку, а кредитодавець і споживач виконають свої обов’язки на умовах  та у строки, визначені в договорі. Реальна річна процентна ставка обчислена на основі припущення, що процентна ставка та інші платежі за послуги кредитодавця залишатимуться незмінними та застосовуватимуться протягом строку дії договору про споживчий кредит. Застереження: використання інших способів надання кредиту та/або зміна інших вищезазначених умов кредитування можуть мати наслідком застосування іншої реальної річної процентної ставки та орієнтовної загальної вартості кредиту для споживача.  Орієнтовна реальна річна процентна ставка обчислена з використанням фінансової функції ЧИСТВНДОХ програмного продукту Microsoft Excel."]
[null,"Позичальник не сплачує Кредитору комісійних винагород за платіжне  обслуговування, що пов‘язані з погашенням Кредиту та процентів за ним Позичальником у готівковій чи безготівковій формі через установи Кредитора. У випадку погашення Позичальником Кредиту та процентів за ним не через установи Кредитора Позичальник буде сплачувати послуги інших банків згідно з тарифами, які діятимуть в таких банках на момент здійснення платіжного  обслуговування Позичальника."]

{"sheet":"ануїтет","index":1,"n_rows":68,"n_cols":28,"rows_kept":68,"cut":false,"hidden":false,"merged":[[14,10,14,13],[70,1,70,17],[37,17,38,17],[22,1,22,2],[35,10,35,15],[35,17,35,19],[37,5,38,5],[37,6,38,6],[37,8,38,8],[37,13,38,13],[30,19,30,21],[34,3,36,3],[37,20,38,20],[60,1,60,8],[62,1,62,8],[63,1,63,8],[75,1,75,22],[73,1,73,22],[74,1,74,22],[64,1,64,8],[65,1,65,17],[66,1,66,17],[72,1,72,17],[67,1,67,17],[69,1,69,17],[71,1,71,22],[68,1,68,22],[61,1,61,8],[37,19,38,19],[37,10,38,10],[33,0,36,0],[15,1,15,2],[27,4,27,5],[37,11,38,11],[37,12,38,12],[37,14,38,14],[37,15,38,15],[37,9,38,9],[18,1,18,2],[33,21,36,21],[33,20,36,20],[37,1,38,1],[37,2,38,2],[37,3,38,3],[33,3,33,19],[35,5,35,9],[34,5,34,19],[34,4,36,4],[37,21,38,21],[37,4,38,4],[33,1,36,1],[33,2,36,2],[10,1,10,2],[8,1,8,2],[14,0,15,0],[11,1,11,2],[13,1,13,2],[12,1,12,2],[14,1,14,2]]}
[]
[]
[]
[null,null,null,"КАЛЬКУЛЯТОР"]
[null,null,null,"Обрані Споживачем умови кредитування"]
[]
[null,"Кредит видається на:"]
[null,"Дата надання кредиту",null,{"$f":"TODAY()","v":"2025-12-18"},null,null,null,null,null,null,null,"Заповнюється Клієнтом"]
[null,"Сума кредиту,грн.: ",null,200000,"гривень"]
[null,"Забезпечення",null,240000,"гривень"]
[null,"Строк користування кредитом (в місяцях): ",null,18]
[null,"Погашення основної суми кредиту: щомісяця"]
[null,"Погашення процентів: щомісяця"]
[{"$f":"ROUND(D9/D11,2)","v":11111.11},"Номінальна процентна ставка: ",null,{"$f":"I15","v":0.187},"річних",{"$f":"D14","v":0.187},null,null,{"$f":"F14/12","v":1.5583333333333333E-2}]
[null,"Номінальна процентна ставка, % річних",null,0.187,"Маржа",0,"Номінальна процентна ставка визначається Банком , як процентна ставка за депозитом (вкладом) + маржа)",null,{"$f":"D15+F15","v":0.187},"річних","Для кредитів і банківських вкладів, валюти яких відрізняються, сума кредиту розраховується за курсом НБУ на дату звернення споживача з оформленням відповідної заяви"]
[null,"Супутні витрати позичальника:"]
[{"$f":"DATE(YEAR(B40),MONTH(B40)+1,DAY(B40))","v":"2026-01-18"},"комісія за надання кредиту (разова): ",null,5.0000000000000001E-3," від основної суми кредиту. Всього:",null,{"$f":"D17*D9","v":1000},null,"гривень"]
[null,"обслуговування кредитної заборгованості: ",null,0,"на місяць від основної суми кредиту:",null,{"$f":"D18*D9","v":0},null,"гривень"]
[null,"надання витягів/внесення запису(ів) до Державного реєстру обтяжень рухомого майна",null,null,null,null,2500,null,"гривень"]
[null,"страхування НВ:",null,0,"на рік від основної суми кредиту:",null,{"$f":"D20*D9","v":0},null,"гривень"]
[null,"страхування майна:",null,0,"на рік від залогової вартості:",null,{"$f":"D10*D21","v":0},null,"гривень"]
[null,"послуги нотаріуса: ",null,null,null,null,0,null,"гривень"]
[null,"державні збори",null,null,"фіксована сума (одноразово)",null,0,null,"гривень"]
[null,"інші послуги третіх осіб",null,null,null,null,0,null,"гривень"]
[null,"інші послуги банку",null,null,null,null,0,null,"гривень"]
[null,"комісійний збір кредитного посередника",null,0,"від суми кредиту (одноразово)",null,{"$f":"D9*D26","v":0},null,"гривень"]
[null,"оцінка майна:",null,null,"фіксована сума (одноразово)",null,0,null,"гривень"]
[null,"інша плата за послуги кредитного посередника",null,null,null,null,0,null,"гривень"]
[null,"ВСЬОГО",null,null,null,null,{"$f":"SUM(G17:G28)","v":3500},null,"гривень"]
[]
[null,null,null,null,null,{"$f":"PMT(F14/12,E11,-D9)","v":{"$error":"#NUM!"}},{"$f":"IPMT(F14/12,1,24,-D9)","v":3116.6666666666665}]
[null,null,null,"Розрахунок загальної вартості споживчого кредиту та реальної процентної ставки"]
[]
[null,"Дата видачі кредиту/дата платежу","Чиста сума кредиту/сума платежу за розрахунковий період, грн.","Види платежів за кредитом",null,null,null,null,null,null,null,null,null,null,null,null,null,null,null,null,"Реальна процентна ставка, % ","Абсолютне значення подорожчання кредиту, грн."]
[null,null,null,"сума кредиту за договором","проценти за користування кредитом","платежі за додаткові та/або супутні послуги"]
[null,null,null,null,null," банку",null,null,null,null," третіх осіб",null,null,null,null,null,null,"кредитного посередника(за наявності)"]
[null,null,null,null,null,"обслуговування кредитної заборгованості","надання витягів/внесення запису(ів) до Державного реєстру обтяжень рухомого майна",null,"комісія за надання кредиту","інші послуги банку ","страхуванням НВ","послугами нотаріусів","страхування майна:","оцінка майна","державні збори","інші послуги третіх осіб",null,"комісійний збір кредитного посередника",null,"інша плата за послуги кредитного посередника"]
[null,1,2,3,4,5,6,null,7,8,9,10,11,12,13,14,null,15,null,16,17,18]
[null,null,null,null,null,null,null,null,null,null,null,null,null,null,null,null,null,null,null,null,null,null,"остаток",null,null,"ан платеж"]
["e",{"$f":"D8","v":"2025-12-18"},{"$f":"-(D40-SUM(F40:T40))","v":-196500},{"$f":"D9","v":200000},"х",{"$f":"$G$18","v":0},{"$f":"G19","v":2500},null,{"$f":"G17","v":1000},{"$f":"G25","v":0},{"$f":"IF(X40=\"страховка\",$G$20,0)","v":0},{"$f":"G22","v":0},{"$f":"IF(X40=\"страховка\",$G$21,0)","v":0},{"$f":"G27","v":0},{"$f":"G23","v":0},{"$f":"G24","v":0},null,{"$f":"G26","v":0},null,{"$f":"G28","v":0},"х","х",200000,{"$f":"IF(MONTH($B$40)-MONTH(B40)=0,\"страховка\",\"нет\")","v":"страховка"},null,null,null,{"$f":"(D9*D14/12)/(1-(1/(1+D14/12)^D11))","v":12827.992505867784}]
["e",{"$f":"DATE(YEAR(B40),MONTH(B40)+1,DAY(B40))","v":"2026-01-18"},{"$f":"SUM(D41:V41)","v":12827.992505867787},{"$f":"Z41-E41","v":9711.3258392011212},{"$f":"W40*$D$14/12","v":3116.6666666666665},{"$f":"$G$18","v":0},null,null,null,null,{"$f":"IF(X41=\"страховка\",$G$20,0)","v":0},null,{"$f":"IF(X41=\"страховка\",$G$21,0)","v":0},null,null,null,null,null,null,null,null,null,{"$f":"W40-D41","v":190288.67416079887},{"$f":"IF(MONTH($B$40)-MONTH(B41)=0,\"страховка\",\"нет\")","v":"нет"},{"$f":"B41-B40","v":31},{"$f":"PMT($D$14/12,$D$11,-$D$9)","v":12827.992505867787}]
["e",{"$f":"DATE(YEAR(B41),MONTH(B41)+1,DAY(B41))","v":"2026-02-18"},{"$f":"SUM(D42:V42)","v":12827.992505867787},{"$f":"Z42-E42","v":9862.6606668620043},{"$f":"W41*$D$14/12","v":2965.3318390057825},0,null,null,null,null,0,null,0,null,null,null,null,null,null,null,null,null,{"$f":"W41-D42","v":180426.01349393686},"нет",{"$f":"B42-B41","v":31},{"$f":"PMT($D$14/12,$D$11,-$D$9)","v":12827.992505867787}]
["e","2026-03-18",12827.992505867787,10016.353795587271,2811.6387102805161,0,null,null,null,null,0,null,0,null,null,null,null,null,null,null,null,null,170409.6596983496,"нет",28,12827.992505867787]
["e","2026-04-18",12827.992505867787,10172.441975568507,2655.550530299281,0,null,null,null,null,0,null,0,null,null,null,null,null,null,null,null,null,160237.21772278109,"нет",31,12827.992505867787]
["e","2026-05-18",12827.992505867787,10330.962529687782,2497.0299761800052,0,null,null,null,null,0,null,0,null,null,null,null,null,null,null,null,null,149906.2551930933,"нет",30,12827.992505867787]
["e","2026-06-18",12827.992505867787,10491.953362442084,2336.039143425704,0,null,null,null,null,0,null,0,null,null,null,null,null,null,null,null,null,139414.30183065121,"нет",31,12827.992505867787]
["e","2026-07-18",12827.992505867787,10655.452969006807,2172.5395368609811,0,null,null,null,null,0,null,0,null,null,null,null,null,null,null,null,null,128758.84886164441,"нет",30,12827.992505867787]
["e","2026-08-18",12827.992505867787,10821.500444440495,2006.4920614272921,0,null,null,null,null,0,null,0,null,null,null,null,null,null,null,null,null,117937.34841720392,"нет",31,12827.992505867787]
["e","2026-09-18",12827.992505867787,10990.135493033027,1837.857012834761,0,null,null,null,null,0,null,0,null,null,null,null,null,null,null,null,null,106947.21292417089,"нет",31,12827.992505867787]
["e","2026-10-18",12827.992505867787,11161.398437799457,1666.5940680683298,0,null,null,null,null,0,null,0,null,null,null,null,null,null,null,null,null,95785.814486371441,"нет",30,12827.992505867787]
["e","2026-11-18",12827.992505867787,11335.330230121832,1492.6622757459547,0,null,null,null,null,0,null,0,null,null,null,null,null,null,null,null,null,84450.484256249605,"нет",31,12827.992505867787]
["e","2026-12-18",12827.992505867787,11511.972459541232,1316.0200463265562,0,null,null,null,null,0,null,0,null,null,null,null,null,null,null,null,null,72938.511796708379,"страховка",30,12827.992505867787]
["e","2027-01-18",12827.992505867787,11691.367363702415,1136.6251421653722,0,null,null,null,null,0,null,0,null,null,null,null,null,null,null,null,null,61247.14443300596,"нет",31,12827.992505867787]
["e","2027-02-18",12827.992505867787,11873.557838453444,954.43466741434293,0,null,null,null,null,0,null,0,null,null,null,null,null,null,null,null,null,49373.586594552515,"нет",31,12827.992505867787]
["e","2027-03-18",12827.992505867787,12058.587448102677,769.40505776511009,0,null,null,null,null,0,null,0,null,null,null,null,null,null,null,null,null,37314.999146449838,"нет",28,12827.992505867787]
["e","2027-04-18",12827.992505867787,12246.500435835611,581.49207003217668,0,null,null,null,null,0,null,0,null,null,null,null,null,null,null,null,null,25068.498710614229,"нет",31,12827.992505867787]
["e","2027-05-18",12827.992505867787,12437.341734294048,390.65077157373838,0,null,null,null,null,0,null,0,null,null,null,null,null,null,null,null,null,12631.156976320181,"нет",30,12827.992505867787]
["e","2027-06-18",12827.992505867787,12631.156976320131,196.83552954765617,0,null,null,null,null,null,null,null,null,null,null,null,null,null,null,null,null,4.9112713895738125E-11,null,31,12827.992505867787]
[null,"Усього",230903.86510562021,199999.99999999997,30903.865105620232,0,2500,0,1000,0,0,0,0,0,0,0,0,0,0,0,{"$f":"XIRR(C40:C58,B40:B58)","v":0.23259333968162535},34403.865105620207]
[]
[null,"Загальні витрати за кредитом( проценти за користування кредитом, комісії та інші обовязкові платежі за додаткові та/або супутні послуги кредитодавця, кредитного посередника (за наявності) та третіх осіб, повязані з отриманням, обслуговуванням та поверненням кредиту), грн з них:",null,null,null,null,null,null,null,{"$f":"V59","v":34403.865105620207}]
[null," - Платежі за додаткові та/або супутні послуги кредитодавця, повязані з отриманням, обслуговуванням та поверненням кредиту), грн",null,null,null,null,null,null,null,{"$f":"E59+F59+G59+I59+J59","v":34403.865105620236}]
[null," - Платежі за додаткові та/або супутні послуги третіх осіб, повязані з отриманням, обслуговуванням та поверненням кредиту), грн",null,null,null,null,null,null,null,{"$f":"K59+L59+M59+N59+O59+P59+R59+T59","v":0}]
[null,"Орієнтовна загальна вартість кредиту для споживача за весь строк користування кредитом ( у т.ч. тіло кредиту, відсотки, комісії та інші платежі), грн.",null,null,null,null,null,null,null,{"$f":"J61+D9","v":234403.86510562021}]
[null,"Орієнтовна реальна річна процентна ставка, % річних",null,null,null,null,null,null,null,{"$f":"U59","v":0.23259333968162535}]
[null,"Застереження: Розрахунок загальної вартості Кредиту і реальної процентної ставки носить інформативний характер для Позичальника  і визначено станом на дату укладання Кредитного договору. При здійсненні розрахунку загальної вартості Кредиту і реальної процентної ставки Кредитор враховував вартість додаткових та/або супутніх послуг третіх осіб, послуги кредитного посередник ( за наявності). В розрахунок загальної  вартості Кредиту і реальної процентної ставки не включались умовні платежі Позичальника  по Договору (пені, штрафи,  які встановлюються згідно з Договором)."]
[null,"Наведені обчислення реальної річної процентної ставки та орієнтовної загальної вартості кредиту для споживача є репрезентативними та базуються на обраних споживачем умовах кредитування, викладених вище, і на припущенні, що договір про споживчий кредит залишатиметься дійсним протягом погодженого строку, а кредитодавець і споживач виконають свої обов’язки на умовах  та у строки, визначені в договорі.Реальна річна процентна ставка обчислена на основі припущення, що процентна ставка та інші платежі за послуги кредитодавця залишатимуться незмінними та застосовуватимуться протягом строку дії договору про споживчий кредит. Застереження: використання інших способів надання кредиту та/або зміна інших вищезазначених умов кредитування можуть мати наслідком застосування іншої реальної річної процентної ставки та орієнтовної загальної вартості кредиту для споживача.  Орієнтовна реальна річна процентна ставка обчислена з використанням фінансової функції ЧИСТВНДОХ програмного продукту Microsoft Excel."]
[null,"Позичальник не сплачує Кредитору комісійних винагород за платіжне  обслуговування, що пов‘язані з погашенням Кредиту та процентів за ним Позичальником у готівковій чи безготівковій формі через установи Кредитора. У випадку погашення Позичальником Кредиту та процентів за ним не через установи Кредитора Позичальник буде сплачувати послуги інших банків згідно з тарифами, які діятимуть в таких банках на момент здійснення платіжного обслуговування Позичальника."]

{"sheet":"тіло в кінці строку","index":2,"n_rows":68,"n_cols":25,"rows_kept":68,"cut":false,"hidden":false,"merged":[[72,1,72,22],[73,1,73,22],[74,1,74,22],[75,1,75,22],[66,1,66,17],[67,1,67,17],[68,1,68,22],[69,1,69,17],[70,1,70,17],[71,1,71,17],[65,1,65,17],[37,14,38,14],[37,15,38,15],[37,17,38,17],[37,19,38,19],[37,1,38,1],[37,2,38,2],[37,3,38,3],[37,4,38,4],[37,5,38,5],[37,6,38,6],[60,1,60,8],[61,1,61,8],[62,1,62,8],[63,1,63,8],[64,1,64,8],[37,20,38,20],[37,21,38,21],[37,8,38,8],[37,9,38,9],[37,10,38,10],[37,11,38,11],[37,12,38,12],[37,13,38,13],[33,21,36,21],[34,3,36,3],[34,4,36,4],[34,5,34,19],[35,5,35,9],[35,10,35,16],[35,17,35,19],[14,11,14,13],[15,1,15,2],[22,1,22,2],[27,4,27,5],[30,19,30,21],[18,1,18,2],[33,0,36,0],[33,1,36,1],[33,2,36,2],[33,3,33,19],[33,20,36,20],[14,0,15,0],[14,1,14,2],[8,1,8,2],[10,1,10,2],[11,1,11,2],[12,1,12,2],[13,1,13,2]]}
[]
[]
[]
[null,null,null,"КАЛЬКУЛЯТОР"]
[null,null,null,"Обрані Споживачем умови кредитування"]
[]
[null,"Кредит видається на:",null,"Під заставу майнових прав на депозит"]
[null,"Дата надання кредиту",null,{"$f":"TODAY()","v":"2025-12-18"},{"$f":"EDATE(D8,D11)","v":"2027-06-18"}]
[null,"Сума кредиту,грн.: ",null,200000,"гривень"]
[null,"Забезпечення",null,240000,"гривень",null,null,null,null,null,null,null,"Заповнюється Клієнтом"]
[null,"Строк користування кредитом (в місяцях): ",null,18]
[null,"Погашення основної суми кредиту: щомісяця"]
[null,"Погашення процентів: щомісяця"]
[{"$f":"ROUND(D9/D11,2)","v":11111.11},"Номінальна процентна ставка: ",null,{"$f":"I15","v":0.3},"річних",{"$f":"D14","v":0.3},null,null,{"$f":"F14/12","v":2.4999999999999998E-2}]
[null,"Номінальна процентна ставка, % річних",null,0.3,"Маржа",0,"Номінальна процентна ставка визначається Банком , як процентна ставка за депозитом (вкладом) + маржа)",null,{"$f":"D15+F15","v":0.3},"річних",null,"Для кредитів і банківських вкладів, валюти яких відрізняються, сума кредиту розраховується за курсом НБУ на дату звернення споживача з оформленням відповідної заяви"]
[null,"Супутні витрати позичальника:"]
[{"$f":"DATE(YEAR(B40),MONTH(B40)+1,DAY(B40))","v":"2026-01-18"},"комісія за надання кредиту (разова): ",null,0.02," від основної суми кредиту/ Всього:",null,{"$f":"D17*D9","v":4000},null,"гривень"]
[null,"обслуговування кредитної заборгованості: ",null,0,"на місяць від основної суми кредиту:",null,{"$f":"D18*D9","v":0},null,"гривень"]
[null,"надання витягів/внесення запису(ів) до Державного реєстру обтяжень рухомого майна",null,null,"фіксована сума (одноразово)",null,500,null,"гривень"]
[null,"страхування НВ:",null,0,"на рік від основної суми кредиту:",null,{"$f":"D20*D9","v":0},null,"гривень"]
[null,"страхування майна:",null,0,"на рік від залогової вартості:",null,{"$f":"D10*D21","v":0},null,"гривень"]
[null,"послуги нотаріуса: ",null,null,null,null,0,null,"гривень"]
[null,"державні збори",null,null,"фіксована сума (одноразово)",null,0,null,"гривень"]
[null,"інші послуги третіх осіб",null,null,"фіксована сума (одноразово)",null,0,null,"гривень"]
[null,"інші послуги банку",null,null,null,null,0,null,"гривень"]
[null,"комісійний збір кредитного посередника",null,0,"від суми кредиту (одноразово)",null,{"$f":"D9*D26","v":0},null,"гривень"]
[null,"оцінка майна:",null,null,"фіксована сума (одноразово)",null,0,null,"гривень"]
[null,"інша плата за послуги кредитного посередника",null,null,null,null,0,null,"гривень"]
[null,"ВСЬОГО",null,null,null,null,{"$f":"SUM(G17:G28)","v":4500},null,"гривень"]
[]
[null,null,null,null,null,{"$f":"PMT(F14/12,E11,-D9)","v":{"$error":"#NUM!"}},{"$f":"IPMT(F14/12,1,24,-D9)","v":5000}]
[null,null,null,"Розрахунок загальної вартості споживчого кредиту та реальної процентної ставки"]
[]
[null,"Дата видачі кредиту/дата платежу","Чиста сума кредиту/сума платежу за розрахунковий період, грн.","Види платежів за кредитом",null,null,null,null,null,null,null,null,null,null,null,null,null,null,null,null,"Орієнтовна реальна річна процентна ставка, % ","пепеплата"]
[null,null,null,"сума кредиту за договором","проценти за користування кредитом","платежі за додаткові та/або супутні послуги"]
[null,null,null,null,null,"банку",null,null,null,null,"третіх осіб",null,null,null,null,null,null,"кредитного посередника(за наявності)"]
[null,null,null,null,null,"обслуговування кредитної заборгованості","надання витягів/внесення запису(ів) до Державного реєстру обтяжень рухомого майна","розрахунково-касове обслуговування","комісія за надання кредиту","інші послуги банку ","страхування НВ","послугами нотаріусів ","страхування майна","оцінка майна","державні збори","інші послуги третіх осіб",null,"комісійний збір кредитного посередника",null,"інша плата за послуги кредитного посередника"]
[null,1,2,3,4,5,6,null,7,8,9,10,11,12,13,14,null,15,null,16,17,18]
[null,null,null,null,null,null,null,null,null,null,null,null,null,null,null,null,null,null,null,null,null,null,"остаток"]
["e",{"$f":"D8","v":"2025-12-18"},{"$f":"-(D40-SUM(F40:T40))","v":-195500},{"$f":"D9","v":200000},"х",{"$f":"$G$18","v":0},{"$f":"G19","v":500},null,{"$f":"G17","v":4000},{"$f":"G25","v":0},{"$f":"IF(X40=\"страховка\",$G$20,0)","v":0},{"$f":"G22","v":0},{"$f":"IF(X40=\"страховка\",$G$21,0)","v":0},{"$f":"G27","v":0},{"$f":"G23","v":0},{"$f":"G24","v":0},null,{"$f":"G26","v":0},null,{"$f":"G28","v":0},"х","х",200000,{"$f":"IF(MONTH($B$40)-MONTH(B40)=0,\"страховка\",\"нет\")","v":"страховка"}]
["e",{"$f":"DATE(YEAR(B40),MONTH(B40)+1,DAY(B40))","v":"2026-01-18"},{"$f":"SUM(D41:V41)","v":5166.6666666666661},{"$f":"IF(B41=$E$8,$W$40,IF(B41<$E$8,0,\"-\"))","v":0},{"$f":"IF(B41<=$E$8,$W$40*$D$14/360*Y41,\" - \")","v":5166.6666666666661},0,null,null,null,null,{"$f":"IF(X41=\"страховка\",$G$20,0)","v":0},null,{"$f":"IF(X41=\"страховка\",$G$21,0)","v":0},null,null,null,null,null,null,null,null,null,{"$f":"W40-D41","v":200000},{"$f":"IF(MONTH($B$40)-MONTH(B41)=0,\"страховка\",\"нет\")","v":"нет"},{"$f":"B41-B40","v":31}]
["e",{"$f":"DATE(YEAR(B41),MONTH(B41)+1,DAY(B41))","v":"2026-02-18"},{"$f":"SUM(D42:V42)","v":5166.6666666666661},{"$f":"IF(B42=$E$8,$W$40,IF(B42<$E$8,0,\"-\"))","v":0},{"$f":"IF(B42<=$E$8,$W$40*$D$14/360*Y42,\" - \")","v":5166.6666666666661},0,null,null,null,null,0,null,0,null,null,null,null,null,null,null,null,null,{"$f":"W41-D42","v":200000},"нет",{"$f":"B42-B41","v":31}]
["e","2026-03-18",4666.6666666666661,0,4666.6666666666661,0,null,null,null,null,0,null,0,null,null,null,null,null,null,null,null,null,200000,"нет",28]
["e","2026-04-18",5166.6666666666661,0,5166.6666666666661,0,null,null,null,null,0,null,0,null,null,null,null,null,null,null,null,null,200000,"нет",31]
["e","2026-05-18",5000,0,5000,0,null,null,null,null,0,null,0,null,null,null,null,null,null,null,null,null,200000,"нет",30]
["e","2026-06-18",5166.6666666666661,0,5166.6666666666661,0,null,null,null,null,0,null,0,null,null,null,null,null,null,null,null,null,200000,"нет",31]
["e","2026-07-18",5000,0,5000,0,null,null,null,null,0,null,0,null,null,null,null,null,null,null,null,null,200000,"нет",30]
["e","2026-08-18",5166.6666666666661,0,5166.6666666666661,0,null,null,null,null,0,null,0,null,null,null,null,null,null,null,null,null,200000,"нет",31]
["e","2026-09-18",5166.6666666666661,0,5166.6666666666661,0,null,null,null,null,0,null,0,null,null,null,null,null,null,null,null,null,200000,"нет",31]
["e","2026-10-18",5000,0,5000,0,null,null,null,null,0,null,0,null,null,null,null,null,null,null,null,null,200000,"нет",30]
["e","2026-11-18",5166.6666666666661,0,5166.6666666666661,0,null,null,null,null,0,null,0,null,null,null,null,null,null,null,null,null,200000,"нет",31]
["e","2026-12-18",5000,0,5000,0,null,null,null,null,0,null,0,null,null,null,null,null,null,null,null,null,200000,"страховка",30]
["e","2027-01-18",5166.6666666666661,0,5166.6666666666661,0,null,null,null,null,0,null,0,null,null,null,null,null,null,null,null,null,200000,"нет",31]
["e","2027-02-18",5166.6666666666661,0,5166.6666666666661,0,null,null,null,null,0,null,0,null,null,null,null,null,null,null,null,null,200000,"нет",31]
["e","2027-03-18",4666.6666666666661,0,4666.6666666666661,0,null,null,null,null,0,null,0,null,null,null,null,null,null,null,null,null,200000,"нет",28]
["e","2027-04-18",5166.6666666666661,0,5166.6666666666661,0,null,null,null,null,0,null,0,null,null,null,null,null,null,null,null,null,200000,"нет",31]
["e","2027-05-18",5000,0,5000,0,null,null,null,null,0,null,0,null,null,null,null,null,null,null,null,null,200000,"нет",30]
["e","2027-06-18",205166.66666666666,200000,5166.6666666666661,0,null,null,null,null,null,null,null,null,null,null,null,null,null,null,null,null,0,null,31]
[null,"Усього",291166.66666666663,200000,91166.666666666672,0,500,0,4000,0,0,0,0,0,0,0,0,0,0,0,{"$f":"XIRR(C40:C58,B40:B58)","v":0.37579076886177054},95666.666666666686]
[]
[null,"Загальні витрати за кредитом( проценти за користування кредитом, комісії та інші обовязкові платежі за додаткові та/або супутні  послуги кредитодавця, кредитного посередника (за наявності) та третіх осіб, повязані з отриманням, обслуговуванням та поверненням кредиту), грн з них:",null,null,null,null,null,null,null,{"$f":"V59","v":95666.666666666686}]
[null," - Платежі за додаткові та/або супутні  послуги кредитодавця, повязані з отриманням, обслуговуванням та поверненням кредиту), грн",null,null,null,null,null,null,null,{"$f":"E59+F59+G59+I59+J59","v":95666.666666666672}]
[null," - Платежі за додаткові та/або супутні послуги третіх осіб, повязані з отриманням, обслуговуванням та поверненням кредиту), грн",null,null,null,null,null,null,null,{"$f":"K59+L59+M59+N59+O59+P59+R59+T59","v":0}]
[null,"Орієнтовна загальна вартість кредиту для споживача за весь строк користування кредитом ( у т.ч. тіло кредиту, відсотки, комісії та інші платежі), грн.",null,null,null,null,null,null,null,{"$f":"J61+D9","v":295666.66666666669}]
[null,"Орієнтовна реальна річна процентна ставка, % річних",null,null,null,null,null,null,null,{"$f":"U59","v":0.37579076886177054}]
[null,"Застереження: Розрахунок загальної вартості Кредиту і реальної процентної ставки носить інформативний характер для Позичальника  і визначено станом на дату укладання Кредитного договору. При здійсненні розрахунку загальної вартості Кредиту і реальної процентної ставки Кредитор враховував вартість додаткових та/або супутніх послуг третіх осіб, послуги кредитного посередник ( за наявності). В розрахунок загальної  вартості Кредиту і реальної процентної ставки не включались умовні платежі Позичальника  по Договору (пені, штрафи,  які встановлюються згідно з Договором).\n"]
[null," Наведені обчислення реальної річної процентної ставки та орієнтовної загальної вартості кредиту для споживача є репрезентативними та базуються на обраних споживачем умовах кредитування, викладених вище, і на припущенні, що договір про споживчий кредит залишатиметься дійсним протягом погодженого строку, а кредитодавець і споживач виконають свої обов’язки на умовах  та у строки, визначені в договорі. Реальна річна процентна ставка обчислена на основі припущення, що процентна ставка та інші платежі за послуги кредитодавця залишатимуться незмінними та застосовуватимуться протягом строку дії договору про споживчий кредит. Застереження: використання інших способів надання кредиту та/або зміна інших вищезазначених умов кредитування можуть мати наслідком застосування іншої реальної річної процентної ставки та орієнтовної загальної вартості кредиту для споживача.  Орієнтовна реальна річна процентна ставка обчислена з використанням фінансової функції ЧИСТВНДОХ програмного продукту Microsoft Excel."]
[null,"Позичальник не сплачує Кредитору комісійних винагород за платіжне  обслуговування, що пов‘язані з погашенням Кредиту та процентів за ним Позичальником у готівковій чи безготівковій формі через установи Кредитора. У випадку погашення Позичальником Кредиту та процентів за ним не через установи Кредитора Позичальник буде сплачувати послуги інших банків згідно з тарифами, які діятимуть в таких банках на момент здійснення платіжного обслуговування Позичальника."]